bitfinex-derivatives/quotes_SOLF0:USTF0_20251122
["timestamp","ask_amount","ask_price","bid_price","bid_amount"]
[1763852410363,3.3,128.23,128.18,12.21169801]
[1763852411252,3.3,128.23,128.18,2.92261858]
[1763852411456,3.3,128.23,128.18,12.21169801]
[1763852411755,3.3,128.23,128.18,19.23739801]
[1763852412361,3.3,128.23,128.19,7.11986367]
[1763852413966,3.3,128.23,128.18,7.11986367]
[1763852414167,3.3,128.23,128.17,7.11986367]
[1763852414461,3.3,128.2,128.17,7.11986367]
[1763852414664,3.3,128.2,128.16,7.11986367]
[1763852415461,3.3,128.2,128.15,7.11986367]
[1763852415668,0.05071601,128.21,128.15,7.11986367]
[1763852415669,3.3,128.18,128.15,7.11986367]
[1763852416062,3.3,128.18,128.14,7.11986367]
[1763852416256,3.3,128.16,128.13,7.11986367]
[1763852417170,3.3,128.16,128.12,14.14886367]
[1763852417371,3.3,128.16,128.12,7.11986367]
[1763852418472,3.3,128.16,128.11,26.54248225]
[1763852418862,3.3,128.16,128.11,23.61986367]
[1763852419065,3.3,128.16,128.11,14.14926367]
[1763852419374,3.3,128.16,128.1,7.11986367]
[1763852419572,0.05206651,128.14,128.1,7.11986367]
[1763852419771,3.3,128.13,128.1,7.11986367]
[1763852420459,3.3,128.13,128.09,14.15056367]
[1763852421772,3.3,128.13,128.09,7.11986367]
[1763852422080,3.3,128.13,128.07,7.11986367]
[1763852422366,3.35682144,128.11,128.06,7.11986367]
[1763852422572,3.35682144,128.11,128.05,14.15276367]
[1763852423170,3.35682144,128.11,128.05,7.0329]
[1763852424070,3.35682144,128.11,128.04,7.11986367]
[1763852424277,3.35682144,128.11,128.03,7.11986367]
[1763852424480,0.05109475,128.08,128.03,7.11986367]
[1763852424875,0.05109475,128.08,128.03,116.53546367]
[1763852425174,3.3,128.14,128.06,109.3937]
[1763852426167,3.3,128.14,128.09,0.05109475]
[1763852426475,0.05891907,128.11,128.09,0.05109475]
[1763852428374,3.35891907,128.11,128.09,0.05109475]
[1763852430568,0.05891907,128.11,128.09,7.08179475]
[1763852431076,123.3219,128.21,128.09,7.08179475]
[1763852431077,3.3,128.25,128.2,7.0248]
[1763852431286,14.0344,128.34,128.2,7.0248]
[1763852431287,3.3,128.28,128.2,16.54]
[1763852431577,3.3,128.28,128.19,16.54]
[1763852431974,3.3,128.27,128.2,7.0244]
[1763852432174,3.3494242,128.25,128.22,0.0527222]
[1763852434278,3.3494242,128.25,128.22,0.0027222]
[1763852434583,3.3,128.24,128.18,8.12188974]
[1763852435183,3.3,128.23,128.18,8.12188974]
[1763852435379,3.3,128.21,128.19,0.05108123]
[1763852439680,3.3,128.21,128.15,19.74154126]
[1763852440783,3.34311662,128.19,128.15,19.74154126]
[1763852441381,0.05311662,128.19,128.16,7.0266]
[1763852441884,0.05311662,128.19,128.16,109.3077]
[1763852442688,3.29,128.24,128.18,12.71434126]
[1763852443389,3.29,128.24,128.15,138.55124126]
[1763852443590,0.05167163,128.21,128.18,0.05423066]
[1763852443890,3.34167163,128.21,128.18,0.05423066]
[1763852451391,10.36627163,128.21,128.18,0.05423066]
[1763852451695,3.29,128.2,128.18,0.05423066]
[1763852460406,10.3149,128.2,128.18,0.05423066]
[1763852460697,3.29,128.19,128.18,0.05423066]
[1763852463294,3.29,128.19,128.15,19.74144126]
[1763852463295,3.29,128.18,128.12,19.83420493]
[1763852463497,3.29,128.18,128.12,12.71434126]
[1763852463900,3.29,128.17,128.12,19.74334126]
[1763852464195,3.29,128.17,128.1,7.11986367]
[1763852464196,3.29,128.15,128.1,7.11986367]
[1763852464401,3.29,128.15,128.1,19.83420493]
[1763852464604,3.29,128.15,128.11,7.0295]
[1763852465198,3.29,128.15,128.1,19.83420493]
[1763852465797,3.29,128.15,128.1,12.71434126]
[1763852466902,10.3177,128.15,128.1,12.71434126]
[1763852467201,3.06,128.14,128.07,36.33420493]
[1763852467406,3.11873589,128.12,128.07,19.83420493]
[1763852468202,3.11873589,128.12,128.08,7.0313]
[1763852468409,3.11873589,128.12,128.08,14.15116367]
[1763852469303,3.11873589,128.12,128.09,7.0306]
[1763852471705,3.11873589,128.12,128.08,7.11986367]
[1763852473117,0.05873589,128.12,128.09,7.0307]
[1763852473810,3.11873589,128.12,128.09,7.0307]
[1763852476011,3.11873589,128.12,128.07,7.11986367]
[1763852476215,3.11873589,128.12,128.06,23.61986367]
[1763852476417,3.11873589,128.12,128.06,7.11986367]
[1763852476810,3.11873589,128.12,128.05,30.65266367]
[1763852477314,3.11873589,128.12,128.04,9.28907943]
[1763852477315,3.06,128.11,128.04,23.61986367]
[1763852477614,7.08813589,128.12,128.04,23.61986367]
[1763852477615,3.11921248,128.09,128.04,23.61986367]
[1763852477810,3.11921248,128.09,128.04,14.15326367]
[1763852478120,3.11921248,128.09,128.03,7.11986367]
[1763852478416,3.11921248,128.09,128.03,14.15376367]
[1763852478617,3.11921248,128.09,128.03,7.11986367]
[1763852478910,3.11921248,128.09,128.03,14.15376367]
[1763852480204,3.11921248,128.09,128.03,7.0339]
[1763852480815,3.06,128.08,128.03,7.0339]
[1763852481210,3.06,128.08,128.01,7.11986367]
[1763852481417,3.06,128.08,127.99,7.11986367]
[1763852481418,3.06,128.04,127.99,7.11986367]
[1763852481712,0.05225889,128.03,127.96,23.61986367]
[1763852481918,0.05225889,128.03,127.99,109.4539]
[1763852482116,3.06,128.09,128.01,116.55716367]
[1763852482419,3.06,128.09,128.02,7.11986367]
[1763852482613,3.06,128.09,128.02,14.15426367]
[1763852482810,3.06,128.09,128.03,4.57380192]
[1763852483008,3.06,128.11,128.05,4.57380192]
[1763852483408,3.11682772,128.09,128.07,0.05241286]
[1763852485408,10.14792772,128.09,128.07,0.05241286]
[1763852485620,3.06,128.08,128.07,0.05241286]
[1763852488218,3.06,128.08,128.01,7.0348]
[1763852488422,3.06,128.07,128.01,7.0348]
[1763852488625,3.06,128.07,127.99,23.63986367]
[1763852488926,3.06,128.06,127.99,16.52]
[1763852489225,0.04968577,128.04,127.99,16.52]
[1763852489425,3.10968577,128.04,127.99,7.036]
[1763852490319,3.10968577,128.04,127.97,7.0372]
[1763852491123,3.06,128.02,127.97,7.0372]
[1763852491427,3.11522122,128.01,127.97,7.0372]
[1763852493218,0.05522122,128.01,127.97,7.0372]
[1763852493621,0.05522122,128.01,127.98,109.4623]
[1763852494228,0.05522122,128.01,127.99,7.036]
[1763852495648,16.52,128.07,128.0,109.4453]
[1763852495841,3.06,128.09,128.01,109.4366]
[1763852496231,3.06,128.09,128.02,109.4265]
[1763852496838,0.05436134,128.07,128.04,0.05305386]
[1763852497437,0.05436134,128.07,128.05,7.0328]
[1763852501232,0.05436134,128.07,128.05,7.11986367]
[1763852501438,0.05436134,128.07,128.04,0.05305386]
[1763852501638,0.05436134,128.07,128.04,16.57305386]
[1763852502146,0.05436134,128.07,128.05,7.0327]
[1763852504532,16.52,128.12,128.05,109.4031]
[1763852504737,16.52,128.12,128.05,116.52296367]
[1763852505634,0.05182848,128.1,128.07,0.05772039]
[1763852506238,0.05182848,128.1,128.07,7.08922039]
[1763852506849,0.05182848,128.1,128.08,7.0312]
[1763852508148,0.05182848,128.1,128.08,14.15106367]
[1763852510247,3.07182848,128.1,128.08,7.11986367]
[1763852510448,3.07182848,128.1,128.07,0.05772039]
[1763852511448,3.02,128.08,128.07,0.05772039]
[1763852511849,4.58,128.08,128.07,0.05772039]
[1763852512955,3.02,128.07,128.02,14.15416367]
[1763852513357,3.02,128.07,128.03,7.11986367]
[1763852513959,3.07413816,128.06,128.04,0.05248366]
[1763852514158,0.05413816,128.06,128.04,0.05248366]
[1763852517459,0.05413816,128.06,128.04,7.17234733]
[1763852518758,0.05413816,128.06,128.05,2.92715328]
[1763852519263,0.05413816,128.06,128.04,7.17234733]
[1763852519457,0.05413816,128.06,128.05,2.92715328]
[1763852520767,19.52,128.11,128.05,2.92715328]
[1763852521070,3.02,128.11,128.08,2.92715328]
[1763852521657,3.0787465,128.11,128.08,2.97683795]
[1763852521954,3.0787465,128.11,128.08,0.04968467]
[1763852522163,3.0787465,128.11,128.08,2.97683795]
[1763852523774,3.0787465,128.11,128.08,10.1375585]
[1763852524875,3.0787465,128.11,128.08,2.97683795]
[1763852526982,3.08,128.08,128.06,3.84072055]
[1763852527170,3.08,128.08,128.04,5.60715328]
[1763852527681,3.08,128.08,128.05,2.68]
[1763852528077,0.05040545,128.08,128.05,2.73292166]
[1763852531780,0.05040545,128.08,128.07,2.92715328]
[1763852536682,0.05040545,128.08,128.07,5.60715328]
[1763852536989,19.58,128.16,128.09,2.68]
[1763852537287,3.08,128.15,128.11,5.60715328]
[1763852537590,3.08,128.14,128.11,5.60715328]
[1763852537779,3.12932384,128.14,128.11,5.66037136]
[1763852538181,0.04932384,128.14,128.13,5.60715328]
[1763852538976,0.04932384,128.14,128.13,5.25237105]
[1763852539187,10.1055,128.19,128.14,2.68]
[1763852539387,3.08,128.18,128.15,5.25237105]
[1763852539789,3.08,128.21,128.17,5.25237105]
[1763852540090,3.08,128.21,128.18,2.68]
[1763852540282,0.0552354,128.21,128.2,2.68]
[1763852541397,0.0552354,128.21,128.19,2.68]
[1763852543094,0.0552354,128.21,128.18,0.04950165]
[1763852543095,3.1352354,128.21,128.18,0.04950165]
[1763852543486,10.1597354,128.21,128.18,0.04950165]
[1763852543687,3.08,128.2,128.18,0.04950165]
[1763852544088,10.1051,128.2,128.18,0.04950165]
[1763852544295,3.08,128.19,128.18,0.04950165]
[1763852544486,3.08,128.19,128.13,7.13720788]
[1763852544687,3.08,128.19,128.13,9.81720788]
[1763852545383,0.05840104,128.17,128.15,0.05083517]
[1763852547799,0.05840104,128.17,128.15,2.73083517]
[1763852553491,3.13840104,128.17,128.15,0.05083517]
[1763852554998,3.08,128.22,128.15,2.73083517]
[1763852555390,10.1039,128.22,128.16,2.62]
[1763852555693,3.08,128.22,128.16,2.62]
[1763852556095,0.05892249,128.2,128.18,2.67472451]
[1763852557794,0.05892249,128.2,128.18,9.70042451]
[1763852557989,0.05892249,128.2,128.19,2.62]
[1763852558403,3.01,128.3,128.26,2.62]
[1763852558593,3.01,128.3,128.22,2.62]
[1763852559198,3.11,128.28,128.22,9.6435]
[1763852559401,0.05627543,128.26,128.24,0.05400207]
[1763852564814,0.05627543,128.26,128.24,2.67400207]
[1763852570313,3.16627543,128.26,128.24,2.67400207]
[1763852571917,3.16627543,128.26,128.24,0.05400207]
[1763852572413,3.16627543,128.26,128.18,2.62]
[1763852572613,3.11,128.26,128.18,2.62]
[1763852573113,16.48,128.26,128.18,2.62]
[1763852573312,7.0227,128.24,128.18,9.6455]
[1763852573619,3.11,128.21,128.2,0.05867754]
[1763852579219,125.7069,128.26,128.2,2.67867754]
[1763852579220,19.59,128.26,128.2,2.67867754]
[1763852579615,3.11,128.25,128.22,7.0235]
[1763852580220,3.16209307,128.25,128.22,7.08300495]
[1763852581722,3.16209307,128.25,128.22,0.05950495]
[1763852583722,3.16209307,128.25,128.22,2.67950495]
[1763852584426,3.16209307,128.25,128.22,9.70300495]
[1763852584815,0.05209307,128.25,128.23,9.643]
[1763852585015,0.05209307,128.25,128.24,2.62]
[1763852588032,3.18,128.32,128.26,2.62]
[1763852588226,3.18,128.32,128.27,2.62]
[1763852589020,0.05216773,128.31,128.29,2.62]
[1763852589230,0.05216773,128.31,128.3,4.01433085]
[1763852589422,0.05216773,128.31,128.3,6.63433085]
[1763852590230,109.108,128.4,128.31,2.62]
[1763852590231,3.18,128.38,128.31,2.62]
[1763852591021,3.18,128.38,128.33,0.05450612]
[1763852591226,3.23805649,128.36,128.33,2.67450612]
[1763852593332,0.05805649,128.36,128.33,2.67450612]
[1763852593537,0.05805649,128.36,128.33,9.69190612]
[1763852593732,0.05805649,128.36,128.34,2.62]
[1763852595230,0.05805649,128.36,128.35,2.62]
[1763852597328,7.0141,128.4,128.35,2.62]
[1763852597531,3.18,128.39,128.35,2.62]
[1763852597726,3.18,128.38,128.32,2.62]
[1763852598330,3.23004361,128.36,128.34,0.05938737]
[1763852600040,10.24634361,128.36,128.34,0.05938737]
[1763852600235,3.18,128.35,128.34,0.05938737]
[1763852600539,3.18,128.33,128.29,2.62]
[1763852601542,0.04925207,128.32,128.3,0.05265616]
[1763852601844,0.04925207,128.32,128.3,2.67265616]
[1763852604239,3.18,128.31,128.24,2.62]
[1763852604843,3.18,128.28,128.24,2.62]
[1763852605529,0.05288112,128.27,128.25,0.05985061]
[1763852605837,0.05288112,128.27,128.25,2.72985061]
[1763852606636,3.23288112,128.27,128.25,0.05985061]
[1763852608042,0.05288112,128.27,128.25,2.72985061]
[1763852608946,0.05288112,128.27,128.25,9.75175061]
[1763852609245,3.18,128.35,128.27,2.67]
[1763852610347,0.0575825,128.32,128.3,0.05062014]
[1763852611149,0.0575825,128.32,128.3,2.72062014]
[1763852611449,3.18,128.38,128.31,2.67]
[1763852611637,3.18,128.38,128.33,7.0175]
[1763852611837,3.18,128.38,128.34,2.67]
[1763852612248,0.0581988,128.37,128.35,0.05706958]
[1763852612432,3.2381988,128.37,128.35,0.05706958]
[1763852612642,0.0581988,128.37,128.35,2.72706958]
[1763852613039,3.2381988,128.37,128.35,0.05706958]
[1763852614444,0.0581988,128.37,128.35,2.72706958]
[1763852616355,19.64,128.4,128.35,2.72706958]
[1763852616356,3.03,128.48,128.38,2.67]
[1763852616555,3.03,128.48,128.39,2.67]
[1763852617245,3.03,128.48,128.41,2.67]
[1763852617441,3.03,128.48,128.37,109.1289]
[1763852617442,3.03,128.42,128.35,2.72]
[1763852617642,3.03,128.42,128.29,109.1966]
[1763852617643,3.03,128.37,128.32,2.72]
[1763852617840,3.03,128.37,128.3,2.72]
[1763852618049,3.03,128.43,128.34,111.8758]
[1763852618253,3.03,128.43,128.35,2.72]
[1763852618452,0.05804599,128.4,128.37,111.90183143]
[1763852618653,0.05949394,128.4,128.38,2.72]
[1763852618849,0.05949394,128.4,128.37,0.05428557]
[1763852619055,3.14949394,128.4,128.37,0.05428557]
[1763852619559,0.05949394,128.4,128.38,2.73]
[1763852619851,3.09,128.45,128.38,2.73]
[1763852620152,3.09,128.42,128.35,9.84871428]
[1763852620746,3.14402991,128.4,128.37,0.05346171]
[1763852621148,0.05402991,128.4,128.37,2.78346171]
[1763852621860,0.05402991,128.4,128.31,116.3055415]
[1763852621861,3.09,128.38,128.29,16.97595578]
[1763852622162,16.46,128.41,128.35,2.78]
[1763852622349,3.09,128.4,128.32,2.78]
[1763852622855,0.05049704,128.37,128.35,2.83940995]
[1763852623060,0.05049704,128.37,128.35,0.05940995]
[1763852623352,3.14049704,128.37,128.35,0.05940995]
[1763852623752,3.14049704,128.37,128.3,111.9626]
[1763852623954,3.09,128.4,128.32,2.78]
[1763852624155,3.09,128.4,128.33,2.78]
[1763852624661,3.09,128.4,128.34,2.78]
[1763852624856,3.14013243,128.38,128.36,0.0592157]
[1763852625354,3.09,128.37,128.36,0.0592157]
[1763852625546,0.05013243,128.38,128.36,0.0592157]
[1763852625758,3.14013243,128.38,128.36,0.0592157]
[1763852626057,0.05013243,128.38,128.31,2.78]
[1763852626257,3.09,128.4,128.31,2.78]
[1763852626457,16.46,128.41,128.34,2.78]
[1763852626666,3.09,128.39,128.3,9.9072415]
[1763852626849,0.05725318,128.36,128.33,0.05118237]
[1763852627056,3.14725318,128.36,128.33,0.05118237]
[1763852627454,3.14725318,128.36,128.27,26.3872415]
[1763852627660,3.09,128.35,128.27,9.9072415]
[1763852627860,3.09,128.35,128.28,7.0201]
[1763852628061,3.09,128.35,128.28,9.8501]
[1763852628262,3.09,128.35,128.28,2.83]
[1763852628463,0.05939682,128.33,128.31,2.83]
[1763852628760,0.05939682,128.33,128.3,2.88476999]
[1763852628949,3.14939682,128.33,128.3,0.05476999]
[1763852629154,3.09,128.32,128.26,2.83]
[1763852630156,0.04971215,128.3,128.28,0.05667895]
[1763852630758,0.04971215,128.3,128.28,2.88667895]
[1763852631458,0.04971215,128.3,128.28,119.11377895]
[1763852631661,0.04971215,128.3,128.29,2.83]
[1763852632462,0.04971215,128.3,128.28,0.05667895]
[1763852632463,3.13971215,128.3,128.28,0.05667895]
[1763852632861,0.04971215,128.3,128.28,0.05667895]
[1763852633457,3.13971215,128.3,128.28,0.05667895]
[1763852635362,3.13971215,128.3,128.21,7.1272415]
[1763852635363,3.09,128.29,128.21,7.1272415]
[1763852635559,3.09,128.27,128.2,10.0172415]
[1763852635757,3.09,128.27,128.21,2.89]
[1763852636059,3.09,128.27,128.21,12.58527058]
[1763852636461,0.05474241,128.25,128.23,0.0547205]
[1763852637859,3.14474241,128.25,128.23,0.0547205]
[1763852638054,0.05474241,128.25,128.23,0.0547205]
[1763852639460,0.05474241,128.25,128.23,2.9447205]
[1763852640157,0.05474241,128.25,128.2,109.2727]
[1763852640158,3.14474241,128.25,128.18,7.1272415]
[1763852640357,3.14474241,128.25,128.2,2.94]
[1763852640656,3.09,128.28,128.22,9.9634]
[1763852640863,3.09,128.28,128.22,2.94]
[1763852641457,0.0518516,128.26,128.24,0.0565116]
[1763852641661,0.0518516,128.26,128.24,2.9965116]
[1763852642562,0.0518516,128.26,128.24,10.0189116]
[1763852642754,0.0518516,128.26,128.25,2.94]
[1763852642959,109.1319,128.37,128.27,2.94]
[1763852642960,3.09,128.35,128.27,2.94]
[1763852643363,3.09,128.35,128.29,9.9597]
[1763852643670,3.09,128.33,128.25,2.94]
[1763852643864,3.09,128.3,128.25,2.94]
[1763852644068,3.14753024,128.3,128.28,0.05663377]
[1763852644270,3.14753024,128.3,128.28,0.05740752]
[1763852644969,3.14753024,128.3,128.21,2.94]
[1763852644970,3.09,128.29,128.21,2.94]
[1763852645668,3.09,128.29,128.23,7.0229]
[1763852645669,3.09,128.28,128.23,7.0229]
[1763852645868,3.36789886,128.27,128.24,0.05095568]
[1763852646369,0.05789886,128.27,128.24,10.01315568]
[1763852646971,0.05789886,128.27,128.26,2.94]
[1763852647868,19.85,128.32,128.27,9.9605]
[1763852648073,19.85,128.32,128.27,2.94]
[1763852648272,16.54,128.32,128.28,2.94]
[1763852648470,16.54,128.32,128.29,9.9597]
[1763852648958,3.31,128.31,128.29,0.05783444]
[1763852650180,16.5913475,128.32,128.29,2.99783444]
[1763852650467,0.0513475,128.32,128.3,2.94]
[1763852650672,0.0513475,128.32,128.31,9.9588]
[1763852651070,0.0513475,128.32,128.3,2.94]
[1763852651272,3.3613475,128.32,128.29,0.05783444]
[1763852653476,0.0513475,128.32,128.29,2.99783444]
[1763852654174,19.9013475,128.32,128.29,0.05783444]
[1763852654372,3.31,128.31,128.29,0.05783444]
[1763852656875,3.31,128.31,128.22,7.1272415]
[1763852657084,3.31,128.29,128.2,2.99]
[1763852657384,3.31,128.29,128.22,2.99]
[1763852657977,0.05630679,128.27,128.24,0.05026026]
[1763852658374,3.36630679,128.27,128.24,7.07266026]
[1763852659579,0.05630679,128.27,128.25,10.0119]
[1763852659780,3.36630679,128.27,128.24,0.05026026]
[1763852661785,0.05630679,128.27,128.24,3.04026026]
[1763852663885,0.05630679,128.27,128.25,7.0216]
[1763852664184,0.05630679,128.27,128.24,3.04026026]
[1763852665678,0.05630679,128.27,128.24,10.06276026]
[1763852666187,3.36630679,128.27,128.24,7.07276026]
[1763852666891,3.36630679,128.27,128.24,0.05026026]
[1763852668987,3.31,128.25,128.18,7.1272415]
[1763852669189,3.31,128.25,128.17,10.1172415]
[1763852669487,3.31,128.24,128.17,7.1272415]
[1763852669788,3.31,128.24,128.15,7.1272415]
[1763852669789,3.31,128.23,128.15,7.1272415]
[1763852669988,3.31,128.21,128.14,10.1172415]
[1763852670290,3.31,128.18,128.15,7.0273]
[1763852670794,3.31,128.18,128.15,10.0173]
[1763852672406,0.05266266,128.19,128.17,2.99]
[1763852672802,0.05266266,128.19,128.18,2.99]
[1763852673005,19.85,128.24,128.19,2.99]
[1763852673201,3.31,128.23,128.17,7.1272415]
[1763852673499,3.31,128.23,128.19,7.0251]
[1763852674006,3.36853189,128.22,128.2,0.0534225]
[1763852674900,0.05853189,128.22,128.2,119.3432225]
[1763852675200,3.31,128.26,128.21,2.99]
[1763852676095,0.05692174,128.25,128.22,7.0232]
[1763852676296,0.05692174,128.25,128.22,7.07831356]
[1763852676905,0.05692174,128.25,128.22,10.09831356]
[1763852677605,0.05692174,128.25,128.23,7.023]
[1763852677998,0.05692174,128.25,128.24,3.02]
[1763852679903,3.3,128.32,128.27,3.05]
[1763852680410,3.3,128.32,128.29,7.0197]
[1763852680801,3.3,128.32,128.29,7.07460441]
[1763852681002,3.35328369,128.32,128.29,7.07460441]
[1763852681205,3.35328369,128.32,128.29,0.05490441]
[1763852681505,3.35328369,128.32,128.29,0.00490441]
[1763852682814,0.05328369,128.32,128.3,10.119]
[1763852683308,0.05328369,128.32,128.3,7.019]
[1763852684606,3.35328369,128.32,128.3,7.019]
[1763852685808,0.05328369,128.32,128.3,7.019]
[1763852686208,3.35328369,128.32,128.29,0.00490441]
[1763852687106,3.35328369,128.32,128.29,7.02460441]
[1763852687310,3.35328369,128.32,128.29,0.00490441]
[1763852688310,0.05328369,128.32,128.29,0.00490441]
[1763852688509,0.05328369,128.32,128.29,3.10490441]
[1763852688911,3.35328369,128.32,128.29,0.00490441]
[1763852689518,3.35328369,128.32,128.29,7.02460441]
[1763852690416,3.35328369,128.32,128.3,7.0192]
[1763852690618,0.05328369,128.32,128.3,7.0192]
[1763852691516,0.05328369,128.32,128.31,3.1]
[1763852692106,0.05328369,128.32,128.3,10.1192]
[1763852692513,3.35328369,128.32,128.29,0.00490441]
[1763852692909,0.05328369,128.32,128.29,0.00490441]
[1763852694221,0.05328369,128.32,128.3,7.0192]
[1763852694513,3.35328369,128.32,128.29,0.00490441]
[1763852695716,0.05328369,128.32,128.3,3.1]
[1763852696516,3.35328369,128.32,128.29,0.00490441]
[1763852697521,3.35328369,128.32,128.29,7.02470441]
[1763852698821,0.05328369,128.32,128.3,10.1191]
[1763852700418,0.05328369,128.32,128.31,3.1]
[1763852700618,0.05328369,128.32,128.29,109.20030441]
[1763852700619,3.35328369,128.32,128.29,0.00490441]
[1763852701908,3.35328369,128.32,128.24,7.0225]
[1763852702118,3.3,128.32,128.23,3.1]
[1763852702520,3.3,128.3,128.24,7.0225]
[1763852702917,3.3,128.27,128.26,0.05736433]
[1763852704124,0.05270692,128.28,128.26,0.05736433]
[1763852705118,3.35270692,128.28,128.26,0.05736433]
[1763852705720,0.05270692,128.28,128.26,10.17866433]
[1763852705922,0.05270692,128.28,128.27,3.1]
[1763852708330,3.25270692,128.28,128.26,0.05736433]
[1763852710125,3.2,128.26,128.2,7.1272415]
[1763852710433,3.2,128.26,128.17,10.2672415]
[1763852710630,3.2,128.24,128.18,3.14]
[1763852710827,3.2,128.26,128.19,3.14]
[1763852711025,0.05021632,128.24,128.21,3.08550384]
[1763852711226,3.31021632,128.24,128.21,3.08550384]
[1763852711728,3.31021632,128.24,128.21,0.05550384]
[1763852712321,3.26,128.23,128.21,0.05550384]
[1763852717025,3.26,128.21,128.15,7.1272415]
[1763852717536,3.26,128.21,128.13,121.64907943]
[1763852717537,3.26,128.21,128.14,10.1572415]
[1763852717829,3.26,128.21,128.16,10.0568]
[1763852718037,3.313467,128.2,128.16,3.03]
[1763852719034,0.053467,128.2,128.16,3.03]
[1763852719832,0.053467,128.2,128.18,3.03]
[1763852721734,3.313467,128.2,128.16,3.03]
[1763852722235,3.313467,128.2,128.17,3.03]
[1763852723128,0.053467,128.2,128.17,3.03]
[1763852725340,3.313467,128.2,128.17,3.03]
[1763852726435,3.313467,128.2,128.16,7.0268]
[1763852726631,3.313467,128.2,128.16,10.0568]
[1763852727641,3.313467,128.2,128.13,10.0584]
[1763852727842,3.313467,128.2,128.14,3.03]
[1763852728033,3.313467,128.2,128.12,7.1272415]
[1763852728034,0.05729427,128.18,128.12,14.1560415]
[1763852728338,3.26,128.17,128.11,3.03]
[1763852728544,0.0566925,128.15,128.11,3.03]
[1763852730536,0.0566925,128.15,128.11,10.0595]
[1763852730736,0.0566925,128.15,128.12,3.03]
[1763852733947,3.3166925,128.15,128.1,3.03]
[1763852736139,0.0566925,128.15,128.1,3.03]
[1763852737246,0.0566925,128.15,128.11,3.16]
[1763852737944,3.11,128.24,128.14,3.1]
[1763852738147,3.11,128.24,128.15,3.1]
[1763852739045,3.16932534,128.21,128.18,0.05031924]
[1763852739248,3.16932534,128.21,128.18,3.15031924]
[1763852739747,0.05932534,128.21,128.18,3.15031924]
[1763852739943,3.28932534,128.21,128.18,0.05031924]
[1763852741154,3.28932534,128.21,128.18,3.15031924]
[1763852741442,0.05932534,128.21,128.18,3.15031924]
[1763852742254,3.28932534,128.21,128.18,0.05031924]
[1763852742750,3.23,128.19,128.12,3.1]
[1763852743447,3.23,128.18,128.09,3.1]
[1763852743646,3.23,128.17,128.09,3.1]
[1763852743951,0.05307743,128.15,128.09,3.1]
[1763852744143,0.05307743,128.15,128.1,3.1]
[1763852744342,0.05307743,128.15,128.11,3.1]
[1763852745951,3.28307743,128.15,128.11,3.1]
[1763852748454,0.05307743,128.15,128.11,3.1]
[1763852749548,3.28307743,128.15,128.08,3.1]
[1763852751155,10.31077743,128.15,128.08,3.1]
[1763852751763,0.05307743,128.15,128.09,3.1]
[1763852751954,0.05190652,128.13,128.09,3.1]
[1763852752261,0.05190652,128.13,128.1,3.1]
[1763852753160,0.05190652,128.13,128.11,3.1]
[1763852757361,3.28190652,128.13,128.1,3.1]
[1763852757555,0.05190652,128.13,128.1,3.1]
[1763852758360,3.28190652,128.13,128.1,3.1]
[1763852760359,3.23,128.12,128.08,3.1]
[1763852760854,3.23,128.11,128.07,7.1272415]
[1763852761066,0.05190652,128.13,128.06,7.1272415]
[1763852761067,3.23,128.09,128.06,7.1272415]
[1763852761253,3.23,128.09,128.05,3.1]
[1763852761254,3.23,128.09,128.05,10.2272415]
[1763852761654,3.23,128.09,128.05,3.1]
[1763852762053,10.2609,128.09,128.05,3.1]
[1763852764562,3.23,128.09,128.05,3.1]
[1763852765562,3.23,128.09,128.02,10.2272415]
[1763852765768,3.28309941,128.07,128.03,3.1]
[1763852767460,3.28309941,128.07,128.0,10.2272415]
[1763852767860,3.01,128.06,128.0,17.2628415]
[1763852768171,0.05612381,128.04,128.01,3.1]
[1763852769057,3.06612381,128.04,128.0,3.1]